fUSD/lending_fUSD_20260508
["ID","MTS","AMOUNT","RATE_DAILY","PERIOD"]
[421838637,1778200232000,-522.16379312,0.00014608,2]
[421838645,1778200232000,-522.16379312,0.00014608,2]
[421838644,1778200232000,-522.16379312,0.00014608,2]
[421838640,1778200232000,-522.16379312,0.00014608,2]
[421838639,1778200232000,-522.16379312,0.00014608,2]
[421838642,1778200232000,-522.16379312,0.00014608,2]
[421838653,1778200232000,-522.16379312,0.00014608,2]
[421838650,1778200232000,-522.16379312,0.00014608,2]
[421838636,1778200232000,-522.16379312,0.00014608,2]
[421838657,1778200232000,-522.16379312,0.00014608,2]
[421838654,1778200232000,-522.16379312,0.00014608,2]
[421838648,1778200232000,-522.16379312,0.00014608,2]
[421838658,1778200232000,-522.16379312,0.00014608,2]
[421838649,1778200232000,-522.16379312,0.00014608,2]
[421838646,1778200232000,-522.16379312,0.00014608,2]
[421838647,1778200232000,-522.16379312,0.00014608,2]
[421838643,1778200232000,-522.16379312,0.00014608,2]
[421838641,1778200232000,-522.16379312,0.00014608,2]
[421838651,1778200232000,-522.16379312,0.00014608,2]
[421838692,1778200233000,-510.2286207,0.00014608,2]
[421838685,1778200233000,-510.2286207,0.00014608,2]
[421838688,1778200233000,-510.2286207,0.00014608,2]
[421838689,1778200233000,-510.2286207,0.00014608,2]
[421838687,1778200233000,-510.2286207,0.00014608,2]
[421838690,1778200233000,-510.2286207,0.00014608,2]
[421838693,1778200233000,-510.2286207,0.00014608,2]
[421838686,1778200233000,-510.2286207,0.00014608,2]
[421838691,1778200233000,-510.2286207,0.00014608,2]
[421838697,1778200233000,-510.2286207,0.00014608,2]
[421838695,1778200233000,-510.2286207,0.00014608,2]
[421838696,1778200233000,-510.2286207,0.00014608,2]
[421838698,1778200233000,-447893.54538821,0.00014609,2]
[421838699,1778200233000,-552.3873477,0.00014609,2]
[421838701,1778200233000,-3071.99700677,0.00014609,2]
[421838700,1778200233000,-5868.41005784,0.00014609,2]
[421838703,1778200233000,-1466.46,0.00014609,2]
[421838702,1778200233000,-3008.1760204,0.00014609,2]
[421838694,1778200233000,-510.2286207,0.00014608,2]
[421838745,1778200237000,-25436.53149633,0.00014609,2]
[421838746,1778200237000,-380.52932165,0.00014609,2]
[421838744,1778200237000,-967.2607722,0.00014552,2]
[421838751,1778200240000,-503.44057045,0.00014609,2]
[421838758,1778200242000,-2765.56122803,0.00014609,2]
[421838756,1778200242000,-234.71891226,0.00014609,2]
[421838755,1778200242000,-150.0,0.00013133,2]
[421838762,1778200243000,-500569.68775852,0.00014609,2]
[421838766,1778200243000,-497.58769478,0.00014609,2]
[421838760,1778200243000,-1001.53652613,0.00014609,2]
[421838759,1778200243000,-18.70091019,0.00014609,2]
[421838767,1778200244000,1000.0,0.0003013,120]
[421838771,1778200245000,-1692.35841568,0.00014609,2]
[421838772,1778200245000,-511.0,0.00014609,2]
[421838773,1778200245000,-8099.6,0.00014609,2]
[421838770,1778200245000,-8150.16322802,0.00014609,2]
[421838774,1778200246000,-3606.579992,0.00014609,2]
[421838874,1778200253000,1000.0,0.0003013,120]
[421838875,1778200260000,1000.0,0.0003013,120]
[421838876,1778200268000,1000.0,0.0003013,120]
[421838877,1778200275000,1000.0,0.0003013,120]
[421838878,1778200282000,1000.0,0.0003013,120]
[421838879,1778200293000,1000.0,0.0003013,120]
[421838880,1778200303000,1000.0,0.0003013,120]
[421838881,1778200312000,1000.0,0.0003013,120]
[421838882,1778200321000,1000.0,0.0003013,120]
[421838884,1778200330000,1000.0,0.0003013,120]
[421838885,1778200336000,1000.0,0.0003013,120]
[421838886,1778200345000,1000.0,0.0003013,120]
[421838887,1778200359000,175.0,0.0003,120]
[421838888,1778200482000,717.25,0.0003013,120]
[421838889,1778200583000,481.88,0.00030137,120]
[421838890,1778200658000,159.0,0.000301,120]
[421838891,1778200660000,159.0,0.000301,120]
[421838893,1778200953000,200.0,0.00030137,120]
[421838895,1778201373000,-879.01069352,0.00013197,2]
[421838894,1778201373000,-150.0,0.00013151,2]
[421838902,1778201431000,-464.29087844,0.0001314,2]
[421838900,1778201431000,-235.42987416,0.00013047,2]
[421838901,1778201431000,-774.09490742,0.0001314,2]
[421838915,1778201432000,-485.0,0.00013676,2]
[421838909,1778201432000,-485.0,0.00013413,2]
[421838910,1778201432000,-330.07,0.00013431,2]
[421838914,1778201432000,-1200.0,0.00013675,2]
[421838904,1778201432000,-2401.39,0.00013147,2]
[421838905,1778201432000,-973.40930648,0.00013197,2]
[421838906,1778201432000,-1186.15,0.00013216,2]
[421838913,1778201432000,-1186.15,0.00013546,2]
[421838907,1778201432000,-485.0,0.00013281,2]
[421838912,1778201432000,-485.0,0.00013544,2]
[421838903,1778201432000,-761.61421414,0.0001314,2]
[421838908,1778201432000,-200.0,0.00013401,2]
[421838916,1778201432000,-6.36601617,0.00013698,2]
[421838918,1778201432000,-166.66,0.00013699,2]
[421838921,1778201432000,-485.0,0.00013807,2]
[421838923,1778201432000,-1186.15,0.00013877,2]
[421838919,1778201432000,-2500.0,0.00013699,2]
[421838925,1778201432000,-79.22601617,0.00013973,2]
[421838917,1778201432000,-293.63398383,0.00013698,2]
[421838920,1778201432000,-166.67,0.00013796,2]
[421838924,1778201432000,-485.0,0.00013939,2]
[421838911,1778201432000,-166.66,0.00013527,2]
[421838922,1778201432000,-166.66,0.00013836,2]
[421838937,1778201437000,-397.25459654,0.00014192,2]
[421838938,1778201437000,-102.74540346,0.00014192,2]
[421838935,1778201437000,-485.0,0.0001407,2]
[421838934,1778201437000,-250.0,0.00014,2]
[421838936,1778201437000,-166.66,0.0001411,2]
[421838933,1778201437000,-87.43398383,0.00013973,2]
[421838942,1778201438000,-166.66,0.00014247,2]
[421838940,1778201438000,-485.0,0.00014202,2]
[421838950,1778201438000,-448.13211,0.00014392,2]
[421838941,1778201438000,-1186.15,0.00014207,2]
[421838946,1778201438000,-166.66,0.00014384,2]
[421838939,1778201438000,-150.0,0.00014192,2]
[421838944,1778201438000,-485.0,0.00014333,2]
[421838943,1778201438000,-152.0,0.00014285,7]
[421838948,1778201438000,-21280.57686507,0.00014392,2]
[421838949,1778201438000,-380.52932165,0.00014392,2]
[421838955,1778201438000,-2527.28622367,0.00014392,2]
[421838954,1778201438000,-2000.0,0.00014392,2]
[421838953,1778201438000,-351.47873777,0.00014392,2]
[421838952,1778201438000,-374.68915625,0.00014392,2]
[421838945,1778201438000,-229.0,0.00014384,2]
[421838947,1778201438000,-2000.0,0.00014392,2]
[421838951,1778201438000,-547.40929043,0.00014392,2]
[421838963,1778201442000,-499.21765633,0.00014392,2]
[421838962,1778201442000,-500.0,0.00014384,2]
[421838983,1778201443000,-500.0,0.00014491,2]
[421838987,1778201443000,-500.0,0.00014491,2]
[421838982,1778201443000,-175.07328149,0.00014491,2]
[421838980,1778201443000,-500.0,0.00014491,2]
[421838981,1778201443000,-263.83031228,0.00014491,2]
[421838973,1778201443000,-766.19700266,0.00014416,2]
[421838970,1778201443000,-3796.21526304,0.00014409,2]
[421838974,1778201443000,-2615.45080212,0.00014416,2]
[421838975,1778201443000,-181.1578553,0.00014416,2]
[421838969,1778201443000,-1073.47007015,0.00014407,2]
[421838971,1778201443000,-206.89244229,0.00014409,2]
[421838979,1778201443000,-500.0,0.00014491,2]
[421838978,1778201443000,-3796.21526298,0.00014479,2]
[421838977,1778201443000,-485.01194802,0.00014465,2]
[421838976,1778201443000,-1073.47007014,0.00014462,2]
[421838965,1778201443000,-4730.23903883,0.00014392,2]
[421838967,1778201443000,-5000.0,0.00014392,2]
[421838966,1778201443000,-2500.0,0.00014392,2]
[421838989,1778201443000,-500.0,0.00014491,2]
[421838972,1778201443000,-512.70147277,0.00014416,2]
[421838968,1778201443000,-153.96303884,0.00014407,2]
[421838990,1778201443000,-500.0,0.00014491,2]
[421838984,1778201443000,-290.15807856,0.00014491,2]
[421839005,1778201443000,-3429.4715809,0.00014492,2]
[421839008,1778201443000,-2199.27351955,0.00014492,2]
[421839006,1778201443000,-426.5,0.00014492,2]
[421839004,1778201443000,-277.93924117,0.00014492,2]
[421839001,1778201443000,-500.0,0.00014492,2]
[421838996,1778201443000,-500.0,0.00014491,2]
[421838995,1778201443000,-500.0,0.00014491,2]
[421839000,1778201443000,-500.0,0.00014491,2]
[421838999,1778201443000,-412.2551036,0.00014491,2]
[421838986,1778201443000,-642.74622732,0.00014491,2]
[421838997,1778201443000,-500.0,0.00014491,2]
[421838991,1778201443000,-500.0,0.00014491,2]
[421838985,1778201443000,-500.0,0.00014491,2]
[421838988,1778201443000,-500.0,0.00014491,2]
[421838992,1778201443000,-500.0,0.00014491,2]
[421838994,1778201443000,-500.0,0.00014491,2]
[421839003,1778201443000,-2274.95272961,0.00014492,2]
[421838998,1778201443000,-500.0,0.00014491,2]
[421839002,1778201443000,-500.0,0.00014492,2]
[421838993,1778201443000,-500.0,0.00014491,2]
[421839015,1778201445000,-1759.0,0.00014492,2]
[421839017,1778201445000,-26872.99544849,0.00014492,2]
[421839016,1778201445000,-45657.15135251,0.00014492,2]
[421839014,1778201445000,-2276.97830001,0.00014492,2]
[421839013,1778201445000,-1154.6861904,0.00014492,2]
[421839019,1778201446000,-409.40245559,0.00014492,2]
[421839018,1778201446000,-289.4375,0.00014492,2]
[421839078,1778201460000,624.95549946,0.0001,2]
[421839081,1778201788000,-390.05399549,0.00013273,2]
[421839082,1778201788000,-161.58461143,0.00013273,2]
[421839080,1778201788000,-200.0,0.00013098,2]
[421839083,1778201790000,-410.15043546,0.00013273,2]
[421839084,1778201794000,-247.59,0.00013273,2]
[421839085,1778201797000,-250.00137133,0.00013273,2]
[421839086,1778201885000,356.64,6.729e-05,2]
[421839090,1778201886000,356.64,8.146e-05,2]
[421839089,1778201886000,356.64,7.792e-05,2]
[421839088,1778201886000,356.64,7.438e-05,2]
[421839087,1778201886000,356.64,7.084e-05,2]
[421839091,1778201886000,356.64,8.5e-05,2]
[421839096,1778201887000,356.64,0.00010271,2]
[421839095,1778201887000,356.64,9.917e-05,2]
[421839093,1778201887000,356.64,9.209e-05,2]
[421839092,1778201887000,356.64,8.854e-05,2]
[421839094,1778201887000,356.64,9.563e-05,2]
[421839100,1778201888000,356.64,0.00011688,2]
[421839099,1778201888000,356.64,0.00011334,2]
[421839098,1778201888000,356.64,0.00010979,2]
[421839097,1778201888000,356.64,0.00010625,2]
[421839101,1778201893000,-151.02,0.00012042,2]
[421839103,1778202009000,7693.0,0.00030137,120]
[421839105,1778202076000,967.326,0.00030137,120]
[421839108,1778202294000,486.04178734,0.0001,2]
[421839109,1778202316000,24252.43180106,0.000107,2]
[421839110,1778202388000,-252.16454479,0.00011979,2]
[421839116,1778202574000,-356.64,0.00012396,2]
[421839117,1778202574000,-66.95589057,0.00012523,2]
[421839114,1778202574000,-162.63,0.00012042,2]
[421839115,1778202574000,-205.62,0.00012042,2]
[421839113,1778202574000,-237.16480295,0.00011979,2]
[421839124,1778202631000,-83.04410943,0.00012523,2]
[421839126,1778202631000,-356.64,0.0001275,2]
[421839128,1778202631000,-163.16426004,0.00012801,2]
[421839127,1778202631000,-185.0,0.00012771,2]
[421839125,1778202631000,-150.0,0.00012647,2]
[421839173,1778202632000,-3814.75,0.00013608,2]
[421839169,1778202632000,-175.68,0.00013608,2]
[421839171,1778202632000,-615.37,0.00013608,2]
[421839175,1778202632000,-498.47,0.00013619,2]
[421839159,1778202632000,-498.47,0.00013573,2]
[421839160,1778202632000,-498.51,0.00013573,2]
[421839165,1778202632000,-700.0,0.000136,4]
[421839161,1778202632000,-647.25,0.0001359,2]
[421839163,1778202632000,-498.47,0.00013596,2]
[421839187,1778202632000,-200.0,0.00013699,2]
[421839167,1778202632000,-1625.89,0.00013608,2]
[421839177,1778202632000,-498.47,0.00013642,2]
[421839191,1778202632000,-500.0,0.000137,5]
[421839179,1778202632000,-498.47,0.00013662,2]
[421839185,1778202632000,-166.66,0.00013699,2]
[421839183,1778202632000,-498.58,0.00013684,2]
[421839181,1778202632000,-498.53510573,0.00013684,2]
[421839195,1778202632000,-237.23,0.00013769,2]
[421839193,1778202632000,-500.0,0.00013726,2]
[421839197,1778202632000,-1500.0,0.000138,5]
[421839199,1778202632000,-166.66,0.00013836,2]
[421839211,1778202632000,-250.0,0.00014099,2]
[421839213,1778202632000,-166.66,0.0001411,2]
[421839215,1778202632000,-5000.0,0.00014192,2]
[421839189,1778202632000,-1100.0,0.000137,5]
[421839157,1778202632000,-498.47,0.0001355,2]
[421839129,1778202632000,-500.0,0.0001281,2]
[421839156,1778202632000,-498.47,0.00013527,2]
[421839203,1778202632000,-166.66,0.00013973,2]
[421839130,1778202632000,-177.7,0.00012842,2]
[421839131,1778202632000,-200.0,0.00012901,2]
[421839132,1778202632000,-1200.69,0.00012921,2]
[421839133,1778202632000,-381.73,0.0001293,2]
[421839135,1778202632000,-356.64,0.00013104,2]
[421839137,1778202632000,-172.65836946,0.00013114,2]
[421839134,1778202632000,-167.37,0.00012934,2]
[421839136,1778202632000,-64.57163054,0.00013114,2]
[421839139,1778202632000,-150.0,0.00013162,2]
[421839138,1778202632000,-481.73,0.00013162,2]
[421839142,1778202632000,-500.0,0.00013397,2]
[421839140,1778202632000,-250.0,0.00013177,2]
[421839141,1778202632000,-166.66,0.00013362,2]
[421839143,1778202632000,-237.23,0.00013442,2]
[421839144,1778202632000,-356.64,0.00013458,2]
[421839147,1778202632000,-1200.0,0.00013487,2]
[421839146,1778202632000,-498.47,0.00013483,2]
[421839148,1778202632000,-228.32884377,0.00013488,2]
[421839145,1778202632000,-498.47,0.0001346,2]
[421839149,1778202632000,-203.39430873,0.00013488,2]
[421839151,1778202632000,-150.0,0.00013499,2]
[421839152,1778202632000,-300.0,0.000135,4]
[421839154,1778202632000,-300.0,0.0001352,2]
[421839155,1778202632000,-2080.17592889,0.00013521,2]
[421839158,1778202632000,-173.05,0.00013567,2]
[421839201,1778202632000,-1900.0,0.000139,5]
[421839150,1778202632000,-150.0,0.00013488,2]
[421839209,1778202632000,-237.23,0.00014097,2]
[421839258,1778202632000,-501.76177234,0.00014273,2]
[421839260,1778202632000,-500.0,0.00014273,2]
[421839263,1778202632000,-500.0,0.00014291,2]
[421839264,1778202632000,-500.0,0.00014291,2]
[421839262,1778202632000,-395.64388062,0.00014291,2]
[421839266,1778202632000,-500.0,0.00014291,2]
[421839265,1778202632000,-500.0,0.00014291,2]
[421839267,1778202632000,-500.0,0.00014291,2]
[421839268,1778202632000,-500.0,0.00014291,2]
[421839270,1778202632000,-237.89821172,0.00014291,2]
[421839273,1778202632000,-184.68121859,0.00014291,2]
[421839275,1778202632000,-500.0,0.00014291,2]
[421839277,1778202632000,-299.92235913,0.00014291,2]
[421839279,1778202632000,-280.47904124,0.00014292,2]
[421839281,1778202632000,-500.0,0.00014292,2]
[421839282,1778202632000,-500.0,0.00014292,2]
[421839284,1778202632000,-500.0,0.00014292,2]
[421839286,1778202632000,-230053.28871153,0.00014292,2]
[421839285,1778202632000,-1335.0,0.00014292,5]
[421839287,1778202632000,-885.56582339,0.00014292,2]
[421839289,1778202632000,-1821.63286512,0.00014292,2]
[421839288,1778202632000,-367.55852767,0.00014292,2]
[421839291,1778202632000,-2368.72,0.00014292,2]
[421839290,1778202632000,-1289.0,0.00014292,2]
[421839207,1778202632000,-250.0,0.00014,2]
[421839261,1778202632000,-500.0,0.00014291,2]
[421839259,1778202632000,-500.0,0.00014273,2]
[421839153,1778202632000,-498.47,0.00013504,2]
[421839256,1778202632000,-501.49599921,0.00014273,2]
[421839219,1778202632000,-44936.5528,0.00014192,2]
[421839223,1778202632000,-2847.16144727,0.00014196,2]
[421839217,1778202632000,-4164.2104,0.00014192,2]
[421839221,1778202632000,-2500.0,0.00014192,2]
[421839225,1778202632000,-500.0,0.00014201,2]
[421839227,1778202632000,-500.0,0.00014201,2]
[421839205,1778202632000,-12014.61704422,0.0001399,2]
[421839234,1778202632000,-500.0,0.00014201,2]
[421839240,1778202632000,-500.0,0.00014201,2]
[421839238,1778202632000,-500.0,0.00014201,2]
[421839236,1778202632000,-500.0,0.00014201,2]
[421839229,1778202632000,-500.0,0.00014201,2]
[421839232,1778202632000,-500.0,0.00014201,2]
[421839231,1778202632000,-500.0,0.00014201,2]
[421839242,1778202632000,-500.0,0.00014201,2]
[421839246,1778202632000,-500.0,0.00014201,2]
[421839248,1778202632000,-518.00297774,0.00014201,2]
[421839247,1778202632000,-500.0,0.00014201,2]
[421839249,1778202632000,-1041.60200261,0.00014218,2]
[421839250,1778202632000,-500.0,0.00014247,2]
[421839251,1778202632000,-166.66,0.00014247,2]
[421839252,1778202632000,-1072.414,0.00014264,2]
[421839253,1778202632000,-181.1578553,0.00014272,2]
[421839254,1778202632000,-200.31015237,0.00014272,2]
[421839255,1778202632000,-510.79800178,0.00014272,2]
[421839257,1778202632000,-500.10898502,0.00014273,2]
[421839244,1778202632000,-500.0,0.00014201,2]
[421839299,1778202638000,-504.95402475,0.00014292,2]
[421839300,1778202638000,-572.74996509,0.00014292,2]
[421839303,1778202638000,-380.52932165,0.00014292,2]
[421839304,1778202638000,-274.5399996,0.00014292,2]
[421839301,1778202638000,-468.12794408,0.00014292,2]
[421839305,1778202638000,-2122.05305534,0.00014292,2]
[421839302,1778202638000,-26416.95528731,0.00014292,2]
[421839308,1778202640000,-2078.89105707,0.00014292,2]
[421839309,1778202641000,-84841.81446549,0.00014292,2]
[421839310,1778202641000,-596.298,0.00014292,2]
[421839313,1778202642000,-544.9,0.00014292,2]
[421839314,1778202642000,-4757.0,0.00014292,2]
[421839312,1778202642000,-4588.28164846,0.00014292,2]
[421839452,1778202643000,-778.39001566,0.00014292,2]
[421839468,1778202643000,-8752.01865533,0.00014292,2]
[421839479,1778202643000,-803.65677391,0.00014292,2]
[421839477,1778202643000,-4842.22338245,0.00014292,2]
[421839530,1778202644000,-1616.0,0.00014292,2]
[421839494,1778202644000,-461.69142424,0.00014292,2]
[421839791,1778202646000,-2187.48845603,0.00014292,2]
[421839795,1778202646000,-49461.5612729,0.00014292,2]
[421839786,1778202646000,-2543.05386661,0.00014292,2]
[421839858,1778202647000,-736.41397762,0.00014292,2]
[421840127,1778203834000,-679.95822935,0.00012321,2]
[421840126,1778203834000,-970.44892758,0.00012321,2]
[421840159,1778203835000,-2589.73,0.00013003,2]
[421840154,1778203835000,-155.74,0.00012773,2]
[421840164,1778203835000,-305.76617532,0.00013221,2]
[421840161,1778203835000,-264.05,0.00013064,2]
[421840155,1778203835000,-2695.39,0.00012807,2]
[421840165,1778203835000,-150.0,0.00013275,2]
[421840163,1778203835000,-628.5,0.00013213,2]
[421840162,1778203835000,-232.49,0.00013164,2]
[421840158,1778203835000,-150.0,0.0001294,2]
[421840156,1778203835000,-150.0,0.00012815,2]
[421840177,1778203835000,-628.5,0.00013543,2]
[421840167,1778203835000,-190.83,0.0001332,2]
[421840166,1778203835000,-1671.76,0.0001332,2]
[421840139,1778203835000,-174.319852,0.00012383,2]
[421840160,1778203835000,-185.0,0.00013064,2]
[421840153,1778203835000,-150.0,0.00012691,2]
[421840146,1778203835000,-305.76617534,0.00012412,2]
[421840144,1778203835000,-150.0,0.00012383,2]
[421840150,1778203835000,-929.95,0.00012537,2]
[421840169,1778203835000,-255.0,0.00013472,2]
[421840148,1778203835000,-200.0,0.00012512,2]
[421840151,1778203835000,-2000.0,0.00012539,2]
[421840147,1778203835000,-1055.47,0.00012443,2]
[421840152,1778203835000,-150.0,0.00012566,2]
[421840145,1778203835000,-122675.63,0.00012384,2]
[421840149,1778203835000,-20071.24,0.00012537,2]
[421840142,1778203835000,-300.0,0.00012383,2]
[421840143,1778203835000,-1200.0,0.00012383,2]
[421840141,1778203835000,-125.680148,0.00012383,2]
[421840138,1778203835000,-549.59284307,0.00012321,2]
[421840157,1778203835000,-305.76617532,0.00012817,2]
[421840168,1778203835000,-1296.10772871,0.00013339,2]
[421840198,1778203835000,-500.0,0.0001386,2]
[421840176,1778203835000,-1296.10772863,0.00013512,2]
[421840173,1778203835000,-150.0,0.00013488,2]
[421840212,1778203835000,-569.13169042,0.00013861,2]
[421840211,1778203835000,-914.31806116,0.00013861,2]
[421840210,1778203835000,-5128.06623055,0.00013861,2]
[421840209,1778203835000,-2277.63330726,0.00013861,2]
[421840205,1778203835000,-500.0,0.0001386,2]
[421840203,1778203835000,-304.21091241,0.0001386,2]
[421840208,1778203835000,-761.84871113,0.00013861,2]
[421840207,1778203835000,-802.29707865,0.00013861,2]
[421840202,1778203835000,-272.43667356,0.0001386,2]
[421840206,1778203835000,-2643.16094388,0.00013861,2]
[421840200,1778203835000,-500.0,0.0001386,2]
[421840201,1778203835000,-500.0,0.0001386,2]
[421840186,1778203835000,-2500.0,0.00013761,2]
[421840182,1778203835000,-166.66,0.00013699,2]
[421840204,1778203835000,-500.0,0.0001386,2]
[421840199,1778203835000,-341.85496376,0.0001386,2]
[421840190,1778203835000,-928.17211881,0.00013774,2]
[421840171,1778203835000,-162.57939543,0.00013488,2]
[421840170,1778203835000,-155.74,0.00013483,2]
[421840174,1778203835000,-150.0,0.00013488,2]
[421840175,1778203835000,-150.00000001,0.00013488,2]
[421840178,1778203835000,-420.0,0.00013588,2]
[421840194,1778203835000,-637.0,0.00013836,2]
[421840184,1778203835000,-200.0,0.00013699,2]
[421840192,1778203835000,-166.66,0.00013836,2]
[421840180,1778203835000,-166.68,0.00013632,2]
[421840188,1778203835000,-5000.0,0.00013761,2]
[421840179,1778203835000,-1680.0,0.00013621,2]
[421840181,1778203835000,-1296.10772863,0.00013686,2]
[421840196,1778203835000,-1296.10772863,0.00013859,2]
[421840172,1778203835000,-279.99629778,0.00013488,2]
[421840222,1778203838000,-1138.61494746,0.00013861,2]
[421840221,1778203838000,-2125.91789386,0.00013861,2]
[421840220,1778203838000,-2200.0,0.00013861,2]
[421840224,1778203839000,-26429.43704581,0.00013861,2]
[421840225,1778203839000,-380.52932165,0.00013861,2]
[421840223,1778203839000,-2092.17979885,0.00013861,2]
[421840262,1778203843000,-528.57303997,0.00013861,2]
[421840261,1778203843000,-5867.92450023,0.00013861,2]
[421840242,1778203843000,-22.92652631,0.00013861,2]
[421840275,1778203844000,-0.72852992,0.00013861,2]
[421840280,1778203846000,-73897.80471716,0.00013861,2]
[421840276,1778203846000,-252.89402284,0.00013861,2]
[421840283,1778203848000,691.65,0.00030137,120]
[421840285,1778203905000,166.15620399,0.00030137,120]
[421840287,1778203944000,174.16,0.00030137,120]
[421840288,1778203984000,17000.0,0.00013527,120]
[421840289,1778204011000,6181.42,0.00030137,120]
[421840290,1778204014000,500.0,0.0003,120]
[421840293,1778204110000,580.0,0.000301,120]
[421840294,1778204135000,500.0,0.000301,120]
[421840295,1778204153000,169.66931717,0.0003013,120]
[421840296,1778204238000,1141.276,0.00030137,120]
[421840297,1778204277000,221.0,0.00030136,120]
[421840298,1778204324000,150.0,0.00030137,120]
[421840299,1778204451000,150.0,0.00022,30]
[421840300,1778204478000,204.38,0.00030137,120]
[421840307,1778204969000,-145.55904127,0.00012785,2]
[421840306,1778204969000,-200.0,0.0001272,2]
[421840304,1778204969000,-166.67,0.00012525,2]
[421840305,1778204969000,-500.0,0.00012562,2]
[421840303,1778204969000,-2000.0,0.00012315,2]
[421840302,1778204969000,-211.24,0.00012192,2]
[421840301,1778204969000,-155.74,0.00012169,2]
[421840311,1778205032000,-300.0,0.00012785,2]
[421840309,1778205032000,-150.0,0.00012785,2]
[421840313,1778205032000,-1200.0,0.00012785,2]
[421840316,1778205032000,-4211.59187353,0.00012786,2]
[421840315,1778205032000,-2769.66149264,0.00012786,2]
[421840314,1778205032000,-2788.00906479,0.00012786,2]
[421840355,1778205033000,-500.0,0.00013043,2]
[421840356,1778205033000,-500.0,0.00013043,2]
[421840353,1778205033000,-500.0,0.00013043,2]
[421840349,1778205033000,-500.0,0.00013043,2]
[421840351,1778205033000,-500.0,0.00013043,2]
[421840358,1778205033000,-500.0,0.00013043,2]
[421840359,1778205033000,-500.0,0.00013043,2]
[421840357,1778205033000,-500.0,0.00013043,2]
[421840362,1778205033000,-500.0,0.00013043,2]
[421840370,1778205033000,-500.0,0.00013043,2]
[421840361,1778205033000,-500.0,0.00013043,2]
[421840364,1778205033000,-500.0,0.00013043,2]
[421840365,1778205033000,-500.0,0.00013043,2]
[421840360,1778205033000,-552.70633866,0.00013043,2]
[421840354,1778205033000,-500.0,0.00013043,2]
[421840347,1778205033000,-500.0,0.00013043,2]
[421840343,1778205033000,-500.0,0.00013043,2]
[421840345,1778205033000,-500.0,0.00013043,2]
[421840341,1778205033000,-500.0,0.00013043,2]
[421840339,1778205033000,-500.0,0.00013043,2]
[421840328,1778205033000,-803.22804306,0.00012956,2]
[421840326,1778205033000,-893.58519629,0.00012945,2]
[421840336,1778205033000,-500.0,0.00013043,2]
[421840321,1778205033000,-803.22804308,0.00012838,2]
[421840324,1778205033000,-265.05,0.00012938,2]
[421840334,1778205033000,-500.0,0.00013043,2]
[421840330,1778205033000,-177.7,0.00013017,2]
[421840332,1778205033000,-155.74,0.00013038,2]
[421840320,1778205033000,-92574.45,0.00012796,2]
[421840318,1778205033000,-64403.55166657,0.00012786,2]
[421840369,1778205033000,-500.0,0.00013043,2]
[421840366,1778205033000,-500.0,0.00013043,2]
[421840363,1778205033000,-500.0,0.00013043,2]
[421840368,1778205033000,-500.0,0.00013043,2]
[421840393,1778205033000,-9999.99,0.00013045,2]
[421840389,1778205033000,-24999.99,0.00013044,2]
[421840367,1778205033000,-500.0,0.00013043,2]
[421840392,1778205033000,-499.99,0.00013045,2]
[421840387,1778205033000,-289.63930427,0.00013044,2]
[421840394,1778205033000,-1212.07,0.00013045,2]
[421840390,1778205033000,-9999.99,0.00013045,2]
[421840396,1778205033000,-999.99,0.00013045,2]
[421840397,1778205033000,-20009.24,0.00013045,2]